bitfinex-derivatives/quotes_SOLF0:USTF0_20251002
["timestamp","ask_amount","ask_price","bid_price","bid_amount"]
[1759437356919,7.57,231.07,230.97,106.52]
[1759437359120,7.57,231.07,230.97,110.4137]
[1759437360013,7.57,231.07,230.98,106.52]
[1759437360718,7.57,231.07,230.99,3.8934]
[1759437360917,7.57,231.07,230.98,106.52]
[1759437361423,7.57,231.07,230.98,110.4136]
[1759437361718,7.57,231.07,230.98,106.52]
[1759437362021,7.48,231.11,231.0,2.78616269]
[1759437362824,7.48,231.11,231.01,3.893]
[1759437364722,7.48,231.11,230.99,3.8935]
[1759437364924,7.48,231.11,231.0,2.78616269]
[1759437366326,7.48,231.11,231.01,106.5]
[1759437368726,3.8915,231.12,231.01,106.5]
[1759437368919,2.78616269,231.16,231.01,106.5]
[1759437369128,3.11560549,231.15,231.01,106.5]
[1759437369427,2.78616269,231.16,231.01,106.5]
[1759437369428,3.11560549,231.14,231.01,106.5]
[1759437369727,7.48,231.1,231.01,106.5]
[1759437370621,7.48,231.14,231.01,106.5]
[1759437371625,7.48,231.14,231.04,2.78616269]
[1759437373630,7.48,231.14,231.06,3.8922]
[1759437373831,7.48,231.14,231.07,106.5]
[1759437374833,7.48,231.14,231.08,106.5]
[1759437377934,3.8908,231.16,231.09,106.48]
[1759437378125,7.48,231.15,231.09,106.48]
[1759437379837,3.8908,231.16,231.09,106.48]
[1759437380035,7.48,231.15,231.09,106.48]
[1759437380629,11.3709,231.15,231.04,3.8926]
[1759437380831,7.48,231.14,231.05,33.8]
[1759437381030,3.8909,231.15,231.05,33.8]
[1759437381233,7.48,231.13,231.05,33.8]
[1759437382533,7.48,231.13,231.05,41.071465]
[1759437382732,7.48,231.18,231.06,7.271465]
[1759437383732,3.8903,231.18,231.06,11.163765]
[1759437383932,7.15,231.18,231.06,7.271465]
[1759437384936,7.15,231.16,231.06,7.271465]
[1759437385340,11.0408,231.16,231.06,7.271465]
[1759437386035,3.891,231.14,231.06,7.271465]
[1759437386233,7.15,231.13,231.07,68.7]
[1759437387039,7.15,231.11,231.07,68.7]
[1759437391445,3.891,231.15,231.07,68.7]
[1759437392042,3.8911,231.14,231.07,68.7]
[1759437392645,11.3111,231.14,231.07,68.7]
[1759437393652,7.42,231.14,231.07,68.7]
[1759437393841,1.7822521,231.17,231.07,77.7537171]
[1759437394145,1.7822521,231.17,231.08,7.271465]
[1759437396341,1.7822521,231.17,231.09,106.46]
[1759437396747,7.42,231.18,231.09,106.46]
[1759437397735,7.42,231.21,231.1,9.0537171]
[1759437398241,7.42,231.21,231.1,1.7822521]
[1759437398440,7.42,231.18,231.11,106.44]
[1759437399145,11.3103,231.18,231.11,106.44]
[1759437400448,11.3103,231.18,231.1,1.7822521]
[1759437400748,11.3103,231.18,231.11,106.44]
[1759437401547,7.42,231.18,231.11,106.44]
[1759437402451,7.42,231.18,231.11,108.2222521]
[1759437403752,7.42,231.18,231.11,106.44]
[1759437404948,5.6720521,231.21,231.11,106.44]
[1759437404949,3.8898,231.21,231.11,106.44]
[1759437405254,3.8898,231.21,231.12,1.7822521]
[1759437406049,1.7822521,231.22,231.12,1.7822521]
[1759437406251,11.3095,231.23,231.11,113.711465]
[1759437406252,7.42,231.23,231.15,1.7822521]
[1759437409756,7.42,231.23,231.13,11.162465]
[1759437409956,7.42,231.23,231.08,60.5416]
[1759437409957,7.42,231.23,231.14,7.271465]
[1759437410159,9.2022521,231.23,231.15,37.0]
[1759437411957,7.42,231.23,231.15,37.0]
[1759437413664,7.42,231.23,231.15,38.7822521]
[1759437414963,7.42,231.23,231.15,37.0]
[1759437417765,9.2022521,231.23,231.15,37.0]
[1759437418667,7.42,231.23,231.15,37.0]
[1759437422776,7.42,231.18,231.08,7.271465]
[1759437423070,60.4939,231.27,231.09,106.36]
[1759437423071,7.42,231.15,231.09,106.36]
[1759437423466,60.4939,231.27,231.09,106.36]
[1759437423467,7.42,231.27,231.09,106.36]
[1759437423671,9.2022521,231.22,231.11,5.6736521]
[1759437424264,9.2022521,231.22,231.12,3.8912]
[1759437424462,9.2022521,231.22,231.13,106.36]
[1759437425469,7.42,231.22,231.13,106.36]
[1759437427275,7.42,231.22,231.13,110.251]
[1759437427482,7.42,231.22,231.14,1.7822521]
[1759437428281,9.2022521,231.22,231.14,1.7822521]
[1759437429979,7.42,231.22,231.14,1.7822521]
[1759437433783,7.42,231.19,231.11,7.271465]
[1759437433978,7.42,231.19,231.12,106.34]
[1759437435385,7.42,231.19,231.12,108.1222521]
[1759437437580,3.8901,231.2,231.12,106.34]
[1759437437888,7.42,231.16,231.1,7.271465]
[1759437438085,7.42,231.16,231.07,7.271465]
[1759437438281,7.42,231.24,231.11,106.32]
[1759437438486,7.42,231.16,231.11,106.32]
[1759437438686,3.8903,231.19,231.11,106.32]
[1759437438892,7.42,231.16,231.11,106.32]
[1759437439089,3.8903,231.19,231.11,106.32]
[1759437439285,9.2022521,231.18,231.11,106.32]
[1759437440093,7.42,231.18,231.11,106.32]
[1759437440393,9.2022521,231.18,231.11,106.32]
[1759437441394,7.42,231.18,231.11,106.32]
[1759437441695,7.42,231.28,231.11,106.32]
[1759437441892,7.42,231.22,231.13,1.7822521]
[1759437442791,7.42,231.22,231.12,3.8912]
[1759437444990,7.38,231.22,231.11,108.1022521]
[1759437446093,9.1622521,231.22,231.11,108.1022521]
[1759437446399,9.1622521,231.22,231.11,111.9935521]
[1759437447999,13.0518521,231.22,231.11,108.1022521]
[1759437448699,9.1622521,231.22,231.11,111.9936521]
[1759437450100,9.1622521,231.22,231.12,3.8912]
[1759437450893,1.7822521,231.22,231.11,113.591465]
[1759437451089,7.38,231.21,231.11,115.3737171]
[1759437451494,9.1622521,231.21,231.11,115.3737171]
[1759437451695,9.1622521,231.21,231.12,3.8912]
[1759437452096,7.38,231.21,231.12,3.8912]
[1759437452296,9.1622521,231.21,231.12,3.8912]
[1759437452497,7.38,231.21,231.13,3.891]
[1759437455804,7.38,231.21,231.14,3.8909]
[1759437456004,2.7832902,231.26,231.13,7.271465]
[1759437456005,7.27,231.25,231.13,7.271465]
[1759437457010,7.27,231.25,231.19,4.84503877]
[1759437457207,7.27,231.27,231.2,111.14503877]
[1759437457409,3.8889,231.27,231.2,106.3]
[1759437457701,2.7832902,231.29,231.2,106.3]
[1759437458095,3.889,231.26,231.2,106.3]
[1759437458299,7.27,231.25,231.2,106.3]
[1759437458500,3.889,231.26,231.2,106.3]
[1759437458696,7.27,231.25,231.2,106.3]
[1759437458902,3.889,231.26,231.2,111.14503877]
[1759437459102,7.27,231.25,231.2,111.14503877]
[1759437459305,3.889,231.26,231.2,111.14503877]
[1759437459806,7.27,231.27,231.2,111.14503877]
[1759437460707,7.27,231.26,231.2,111.14503877]
[1759437463810,11.159,231.26,231.2,111.14503877]
[1759437464302,7.27,231.24,231.2,111.14503877]
[1759437465802,2.7832902,231.32,231.23,4.84503877]
[1759437466008,7.27,231.31,231.24,4.84503877]
[1759437466512,11.1587,231.28,231.24,4.84503877]
[1759437466809,3.8887,231.28,231.24,4.84503877]
[1759437467114,11.1589,231.27,231.24,4.84503877]
[1759437467505,11.1589,231.27,231.23,4.84503877]
[1759437467700,3.8891,231.26,231.23,4.84503877]
[1759437467901,3.8891,231.26,231.22,4.84503877]
[1759437468706,2.7832902,231.29,231.22,4.84503877]
[1759437468906,7.27,231.28,231.23,30.28]
[1759437469206,2.7832902,231.29,231.23,30.28]
[1759437469706,3.8894,231.24,231.23,30.28]
[1759437469906,60.4808,231.32,231.23,30.28]
[1759437470109,63.2640902,231.32,231.23,30.28]
[1759437470312,7.27,231.31,231.23,30.28]
[1759437471102,3.8888,231.28,231.23,30.28]
[1759437472310,11.1588,231.28,231.23,30.28]
[1759437474016,3.8889,231.27,231.23,30.28]
[1759437474311,11.1589,231.27,231.23,30.28]
[1759437474715,11.1589,231.27,231.24,75.74]
[1759437475410,2.7832902,231.33,231.24,75.74]
[1759437475411,11.1591,231.26,231.24,75.74]
[1759437475611,7.27,231.29,231.22,106.22]
[1759437475816,7.27,231.28,231.22,106.22]
[1759437476218,3.8894,231.24,231.22,106.22]
[1759437476611,3.8888,231.27,231.22,106.22]
[1759437477111,3.8888,231.27,231.22,111.06503877]
[1759437480315,3.8888,231.27,231.22,106.22]
[1759437481224,3.8891,231.26,231.22,106.22]
[1759437481710,3.8891,231.26,231.23,106.2]
[1759437487025,3.8891,231.26,231.23,111.04503877]
[1759437488927,3.8886,231.28,231.24,4.84503877]
[1759437489123,7.7,231.36,231.23,111.04503877]
[1759437489425,7.7,231.35,231.25,4.84503877]
[1759437489626,63.2531902,231.36,231.25,4.84503877]
[1759437489627,3.8886,231.29,231.25,4.84503877]
[1759437491125,3.8886,231.29,231.26,4.84503877]
[1759437491723,3.8882,231.31,231.26,4.84503877]
[1759437492124,3.8882,231.31,231.27,4.84503877]
[1759437492427,3.8882,231.31,231.28,106.16]
[1759437493927,3.8884,231.3,231.28,106.16]
[1759437494429,3.8884,231.3,231.29,106.14]
[1759437496835,3.8884,231.3,231.19,2.7832902]
[1759437496836,7.7,231.28,231.26,4.84503877]
[1759437497033,7.7,231.28,231.27,34.0]
[1759437497630,7.7,231.28,231.27,62.36]
[1759437498029,11.5886,231.28,231.27,62.36]
[1759437498327,7.7,231.34,231.27,62.36]
[1759437499326,7.7,231.34,231.27,67.20503877]
[1759437499733,3.888,231.32,231.28,4.84503877]
[1759437501235,3.8882,231.31,231.28,4.84503877]
[1759437502335,11.5882,231.31,231.28,4.84503877]
[1759437502531,3.8884,231.3,231.28,4.84503877]
[1759437503627,11.5884,231.3,231.28,4.84503877]
[1759437503828,3.8884,231.3,231.28,4.84503877]
[1759437504630,7.27,231.29,231.28,4.84503877]
[1759437504939,7.27,231.27,231.25,99.04503877]
[1759437505336,3.8889,231.26,231.25,99.04503877]
[1759437505937,3.8889,231.26,231.25,106.1]
[1759437509137,3.8889,231.26,231.25,110.94503877]
[1759437509442,11.1593,231.24,231.23,4.84503877]
[1759437509639,3.8893,231.24,231.23,110.94503877]
[1759437509839,3.8893,231.24,231.23,106.1]
[1759437514235,3.889,231.26,231.23,106.1]
[1759437514839,3.8892,231.25,231.23,106.1]
[1759437516141,1.78059887,231.29,231.23,106.1]
[1759437517547,7.34,231.3,231.23,106.1]
[1759437521047,1.78059887,231.28,231.23,106.1]
[1759437521945,7.34,231.27,231.23,106.1]
[1759437522143,1.78059887,231.28,231.23,106.1]
[1759437522345,7.34,231.27,231.23,106.1]
[1759437523850,60.4706,231.36,231.23,106.1]
[1759437524047,9.12059887,231.32,231.23,106.1]
[1759437525053,3.8882,231.31,231.2,9.05206387]
[1759437525246,7.34,231.28,231.2,1.78059887]
[1759437525449,7.34,231.28,231.21,44.36]
[1759437526654,3.8888,231.27,231.21,44.36]
[1759437530957,3.889,231.26,231.21,44.36]
[1759437533056,3.8892,231.25,231.21,44.36]
[1759437533255,3.8892,231.25,231.22,90.86]
[1759437533961,3.8892,231.25,231.22,106.02]
[1759437536460,3.8894,231.24,231.23,106.02]
[1759437537461,3.8896,231.23,231.19,1.78059887]
[1759437537655,3.8896,231.23,231.22,106.02]
[1759437537855,7.34,231.29,231.22,106.02]
[1759437538357,1.78059887,231.3,231.22,106.02]
[1759437538658,7.34,231.29,231.22,106.02]
[1759437539265,3.8893,231.25,231.22,106.02]
[1759437540158,7.34,231.25,231.17,1.78059887]
[1759437540353,7.34,231.25,231.13,3.8911]
[1759437540354,1.78059887,231.24,231.18,106.0]
[1759437540958,7.34,231.23,231.18,106.0]
[1759437541361,1.78059887,231.24,231.18,106.0]
[1759437541566,3.8899,231.21,231.18,106.0]
[1759437542360,3.8901,231.2,231.18,106.0]
[1759437542563,60.494,231.27,231.11,314.6]
[1759437542564,9.10059887,231.21,231.11,314.6]
[1759437542863,9.10059887,231.21,231.12,106.0]
[1759437543659,3.8903,231.18,231.12,106.0]
[1759437544568,1.78059887,231.18,231.11,314.6]
[1759437544769,1.78059887,231.18,231.12,106.0]
[1759437544964,7.32,231.17,231.12,106.0]
[1759437545268,1.78059887,231.18,231.12,106.0]
[1759437545457,7.32,231.17,231.12,106.0]
[1759437545663,7.32,231.17,231.13,106.0]
[1759437545857,11.2111,231.14,231.13,106.0]
[1759437547671,11.2111,231.14,231.03,7.271465]
[1759437547672,7.32,231.14,231.03,7.271465]
[1759437547859,1.78059887,231.11,231.04,83.12]
[1759437548061,1.78059887,231.11,231.01,1.78059887]
[1759437548062,3.8925,231.06,231.01,1.78059887]
[1759437548262,3.8925,231.06,231.02,106.0]
[1759437548566,67.861,231.09,231.02,106.0]
[1759437548768,3.8927,231.05,231.02,106.0]
[1759437548966,9.10059887,231.09,231.02,106.0]
[1759437549866,3.8918,231.1,231.04,1.78059887]
[1759437550167,7.32,231.13,231.04,1.78059887]
[1759437551169,7.32,231.17,231.07,1.78059887]
[1759437551366,7.32,231.17,231.08,106.0]
[1759437551568,3.8912,231.13,231.08,106.0]
[1759437553971,11.2112,231.13,231.08,106.0]
[1759437554765,3.8912,231.13,231.08,106.0]
[1759437556171,7.32,231.17,231.08,106.0]
[1759437557674,7.32,231.17,231.07,1.78059887]
[1759437557971,7.32,231.17,231.08,106.0]
[1759437558867,1.78059887,231.19,231.08,106.0]
[1759437559270,7.32,231.18,231.08,106.0]
[1759437559766,7.32,231.18,231.1,1.78059887]
[1759437560774,7.32,231.18,231.11,106.0]
[1759437561481,3.8906,231.17,231.1,1.78059887]
[1759437561768,7.32,231.2,231.1,30.28059887]
[1759437562074,1.78059887,231.19,231.1,1.78059887]
[1759437562274,1.78059887,231.19,231.11,51.34]
[1759437562674,3.8904,231.18,231.11,51.34]
[1759437563170,3.8904,231.18,231.1,1.78059887]
[1759437563371,3.8904,231.18,231.11,74.78]
[1759437563572,3.8904,231.18,231.11,97.02]
[1759437563875,3.8906,231.17,231.1,1.78059887]
[1759437564072,7.32,231.17,231.11,106.0]
[1759437565581,3.8908,231.16,231.11,106.0]
[1759437565766,7.33,231.15,231.1,1.78059887]
[1759437565970,7.33,231.15,231.11,106.0]
[1759437566479,11.2209,231.15,231.11,106.0]
[1759437567184,3.8911,231.14,231.11,106.0]
[1759437567972,3.8911,231.14,231.08,1.78059887]
[1759437568174,3.8911,231.14,231.09,105.98]
[1759437570378,11.2211,231.14,231.09,105.98]
[1759437570977,11.2211,231.14,231.08,1.78059887]
[1759437571179,3.8913,231.13,231.09,105.98]
[1759437573676,60.5043,231.23,231.11,1.78059887]
[1759437573877,9.15059887,231.22,231.11,1.78059887]
[1759437574281,3.8906,231.17,231.09,108.76355149]
[1759437577282,3.8908,231.16,231.09,2.78355149]
[1759437577482,73.14910837,231.23,231.05,7.271465]
[1759437577483,7.37,231.15,231.1,37.32]
[1759437577687,7.37,231.18,231.1,37.32]
[1759437578186,60.514,231.19,231.1,37.32]
[1759437578586,7.37,231.13,231.1,37.32]
[1759437578979,60.514,231.19,231.1,37.32]
[1759437579185,11.2614,231.12,231.08,55.24]
[1759437579885,60.5265,231.15,231.02,10.05501649]
[1759437580086,7.37,231.13,231.03,83.98]
[1759437580286,60.5278,231.14,231.03,83.98]
[1759437580490,7.37,231.13,231.03,83.98]
[1759437580886,3.8919,231.09,231.03,83.98]
[1759437581688,3.8915,231.11,231.03,83.98]
[1759437582692,3.8915,231.11,231.02,2.78355149]
[1759437582693,3.8915,231.11,231.04,105.94]
[1759437582893,7.37,231.13,231.04,105.94]
[1759437584193,3.8918,231.1,231.04,105.94]
[1759437585493,3.8918,231.1,231.01,7.271465]
[1759437585689,7.37,231.09,231.05,105.94]
[1759437586897,11.262,231.09,231.01,10.05501649]
[1759437587198,11.262,231.09,231.06,105.94]
[1759437587796,11.262,231.09,231.07,105.94]
[1759437588499,193.41959612,231.41,231.07,105.94]
[1759437588500,60.4985,231.25,231.07,105.94]
[1759437588798,7.37,231.21,231.1,2.78355149]
[1759437589402,7.37,231.18,231.11,105.94]
[1759437589601,7.37,231.18,231.12,105.94]
[1759437590404,3.8905,231.17,231.12,105.94]
[1759437590600,11.2605,231.17,231.12,105.94]
[1759437592701,3.8901,231.2,231.12,105.94]
[1759437592899,7.37,231.19,231.12,105.94]
[1759437593305,7.37,231.19,231.13,105.92]
[1759437593903,3.8907,231.16,231.13,105.92]
[1759437594103,11.2607,231.16,231.13,105.92]
[1759437594299,7.37,231.15,231.07,2.78355149]
[1759437594496,7.37,231.15,231.08,105.92]
[1759437595101,3.8914,231.12,231.08,105.92]
[1759437600508,3.8917,231.1,231.08,105.92]
[1759437601007,3.8913,231.13,231.08,105.92]
[1759437601402,3.8913,231.13,231.09,105.92]
[1759437601807,3.8915,231.12,231.09,105.92]
[1759437602011,7.37,231.15,231.09,105.92]
[1759437602207,3.8916,231.1,231.09,105.92]
[1759437602412,3.8916,231.1,231.04,2.78355149]
[1759437602613,60.5296,231.13,231.05,105.9]
[1759437602806,3.892,231.09,231.05,105.9]
[1759437603111,7.09,231.3,231.12,60.5321]
[1759437603310,7.09,231.35,231.24,2.78355149]
[1759437603511,7.09,231.4,231.28,2.78355149]
[1759437603705,7.09,231.35,231.2,314.72]
[1759437603907,7.09,231.26,231.18,106.42]
[1759437604109,7.09,231.32,231.19,4.84643131]
[1759437604400,60.486,231.3,231.2,106.56]
[1759437604613,7.09,231.27,231.21,106.56]
[1759437605501,7.09,231.27,231.16,2.78355149]
[1759437605703,7.09,231.27,231.17,106.58]
[1759437606109,7.09,231.27,231.18,106.58]
[1759437606506,7.09,231.27,231.16,2.78355149]
[1759437606507,60.5062,231.22,231.13,4.84643131]
[1759437606707,60.5062,231.22,231.09,7.271465]
[1759437606708,7.09,231.2,231.14,35.54]
[1759437607511,3.8905,231.17,231.14,35.54]
[1759437608311,10.9809,231.15,231.12,106.6]
[1759437608512,7.09,231.21,231.12,106.6]
[1759437608814,3.8902,231.19,231.12,106.6]
[1759437610414,7.09,231.16,231.12,106.6]
[1759437610610,7.09,231.16,231.11,106.6]
[1759437610817,7.09,231.18,231.11,106.6]
[1759437611614,3.8908,231.15,231.11,106.6]
[1759437612210,67.6144,231.15,231.05,4.84643131]
[1759437612405,67.6144,231.15,231.03,4.84643131]
[1759437612608,67.6144,231.15,231.06,106.62]
[1759437613212,3.8915,231.11,231.06,106.62]
[1759437614016,3.8911,231.14,231.06,106.62]
[1759437614220,67.6155,231.15,231.06,106.62]
[1759437614415,7.09,231.12,231.06,106.62]
[1759437614621,3.8917,231.1,231.06,106.62]
[1759437616212,3.8921,231.08,231.06,106.62]
[1759437616418,3.8921,231.08,231.06,106.54]
[1759437616715,3.893,231.03,231.01,314.66]
[1759437617917,3.893,231.03,231.0,106.56]
[1759437618120,10.9824,231.06,230.99,106.6]
[1759437618318,60.5429,231.08,230.99,106.6]
[1759437619318,67.6381,231.06,230.99,106.6]
[1759437619525,60.5505,231.05,230.99,106.6]
[1759437620622,3.893,231.02,230.99,106.6]
[1759437620823,7.09,231.06,230.99,106.6]
[1759437621017,7.09,231.1,230.99,106.6]
[1759437621218,3.8927,231.04,230.99,106.6]
[1759437624828,3.8923,231.07,230.99,106.6]
[1759437627029,3.8918,231.09,230.99,106.6]
[1759437627231,3.8918,231.09,231.0,2.78355149]
[1759437627528,3.8917,231.1,231.0,2.78355149]
[1759437627825,7.27,231.2,231.04,2.78355149]
[1759437628030,7.27,231.2,231.05,106.46]
[1759437628927,7.27,231.2,231.05,111.30643131]
[1759437629718,3.8908,231.16,231.05,111.30643131]
[1759437630431,3.8903,231.19,231.06,8.73873131]
[1759437630931,3.8903,231.19,231.08,2.78355149]
[1759437632433,11.0793,231.24,231.12,2.78355149]
[1759437632732,11.0793,231.24,231.13,106.42]
[1759437633531,7.19,231.24,231.13,106.42]
[1759437633731,3.8889,231.27,231.13,115.15743131]
[1759437633931,3.8889,231.27,231.16,2.78355149]
[1759437634136,7.19,231.28,231.16,7.6299828]
[1759437634336,7.19,231.28,231.17,4.84643131]
[1759437635034,7.19,231.28,231.18,4.84643131]
[1759437635435,7.19,231.28,231.17,4.84643131]
[1759437635635,7.19,231.28,231.17,8.73683131]
[1759437636228,7.19,231.28,231.22,1.77978167]
[1759437636434,7.19,231.28,231.22,108.21978167]
[1759437636941,3.8884,231.3,231.22,108.21978167]
[1759437637834,7.19,231.29,231.22,108.21978167]
[1759437645238,3.8884,231.3,231.22,108.21978167]
[1759437645442,3.8879,231.32,231.22,108.21978167]
[1759437646043,3.8879,231.32,231.25,1.77978167]
[1759437646244,7.19,231.33,231.25,1.77978167]
[1759437646538,181.3263,231.47,231.22,106.44]
[1759437646539,7.19,231.37,231.28,1.77978167]
[1759437646935,11.0773,231.37,231.28,1.77978167]
[1759437654846,7.19,231.37,231.28,1.77978167]
[1759437655047,3.8867,231.4,231.31,1.77978167]
[1759437655343,7.19,231.41,231.32,31.22]
[1759437656849,11.0766,231.41,231.32,31.22]
[1759437657049,7.19,231.41,231.32,31.22]
[1759437657544,3.8868,231.4,231.32,31.22]
[1759437657745,3.8868,231.4,231.33,50.24]
[1759437657941,1.77978167,231.38,231.24,62.0]
[1759437658145,7.19,231.37,231.27,1.77978167]
[1759437659148,3.8874,231.36,231.27,1.77978167]
[1759437659849,3.8874,231.36,231.28,33.0]
[1759437660151,7.19,231.37,231.28,33.0]
[1759437660448,7.19,231.37,231.29,57.44]
[1759437661442,7.19,231.37,231.3,1.77978167]
[1759437662153,7.19,231.37,231.31,3.8881]
[1759437663651,7.19,231.37,231.3,1.77978167]
[1759437664243,3.8866,231.4,231.3,5.66798167]
[1759437664545,8.89978167,231.41,231.3,1.77978167]
[1759437664850,8.89978167,231.41,231.31,3.888]
[1759437665250,8.89978167,231.41,231.3,1.77978167]
[1759437666350,11.0066,231.4,231.31,80.8]
[1759437667352,11.0066,231.4,231.31,84.688]
[1759437668354,3.8869,231.39,231.31,80.8]
[1759437668556,1.77978167,231.38,231.27,1.77978167]
[1759437668763,7.12,231.37,231.28,27.38]
[1759437668964,7.12,231.37,231.29,27.38]
[1759437669251,7.12,231.34,231.25,3.8891]
[1759437669554,1.77978167,231.35,231.26,39.24]
[1759437669757,7.12,231.34,231.26,39.24]
[1759437670459,7.12,231.34,231.27,68.08]
[1759437672858,8.89978167,231.34,231.27,68.08]
[1759437673259,12.78758167,231.34,231.27,68.08]
[1759437674663,7.12,231.34,231.27,68.08]
[1759437674864,8.89978167,231.34,231.27,68.08]
[1759437676565,20.55166857,231.49,231.27,68.08]
[1759437676760,7.12,231.36,231.27,68.08]
[1759437677870,7.12,231.4,231.32,1.77978167]
[1759437678872,7.12,231.4,231.29,1.77978167]
[1759437679075,7.12,231.38,231.29,1.77978167]
[1759437679267,7.12,231.38,231.3,105.9]
[1759437679466,7.12,231.38,231.29,1.77978167]
[1759437679667,7.12,231.38,231.3,105.9]
[1759437682171,7.12,231.38,231.3,110.74643131]
[1759437682370,7.12,231.38,231.31,4.84643131]
[1759437684177,7.09,231.42,231.31,4.84643131]
[1759437684367,7.09,231.42,231.32,4.84643131]
[1759437684772,10.9764,231.42,231.32,4.84643131]
[1759437687179,7.09,231.39,231.32,4.84643131]
[1759437687479,7.09,231.39,231.33,4.84643131]
[1759437688783,7.09,231.39,231.34,105.88]
[1759437689282,12.75638167,231.4,231.35,105.88]
[1759437689471,7.09,231.39,231.35,105.88]
[1759437689672,7.09,231.39,231.33,4.84643131]
[1759437689872,12.75638167,231.4,231.34,105.88]
[1759437690282,12.75638167,231.4,231.35,105.88]
[1759437690487,7.09,231.39,231.35,105.88]
[1759437690783,7.09,231.39,231.36,105.88]
[1759437691780,11.4364,231.42,231.34,4.84643131]
[1759437691977,7.55,231.42,231.35,105.88]
[1759437692472,7.55,231.42,231.34,4.84643131]
[1759437692670,7.55,231.42,231.35,19.9]
[1759437692870,7.55,231.42,231.34,4.84643131]
[1759437693181,7.55,231.42,231.35,43.92]
[1759437693382,7.55,231.42,231.34,4.84643131]
[1759437693581,3.8865,231.41,231.35,71.84]
[1759437696285,7.55,231.42,231.35,71.84]
[1759437696485,9.32978167,231.42,231.35,71.84]
[1759437697186,9.32978167,231.42,231.35,76.68643131]
[1759437697582,13.21618167,231.42,231.35,76.68643131]
[1759437698182,11.4364,231.42,231.35,76.68643131]
[1759437698881,11.4364,231.42,231.36,4.84643131]
[1759437699985,11.4364,231.42,231.35,76.68643131]
[1759437700188,3.8865,231.41,231.35,76.68643131]
[1759437704487,11.4365,231.41,231.36,4.84643131]
[1759437706288,7.55,231.4,231.36,4.84643131]
[1759437706485,3.8865,231.41,231.36,4.84643131]
[1759437706686,7.55,231.4,231.36,4.84643131]
[1759437708080,3.8865,231.41,231.36,4.84643131]
[1759437708279,11.4365,231.41,231.35,76.68643131]
[1759437709190,7.55,231.57,231.37,4.84643131]
[1759437709382,7.55,231.57,231.44,4.84643131]
[1759437709584,7.55,231.57,231.45,12.02]
[1759437709883,7.55,231.57,231.45,16.86643131]
[1759437710084,7.55,231.69,231.53,4.84643131]
[1759437710286,7.55,231.69,231.56,2.77825038]
[1759437710481,60.3662,231.76,231.56,2.77825038]
[1759437710678,2.77825038,231.77,231.63,4.84643131]
[1759437710882,7.55,231.76,231.61,4.84643131]
[1759437711083,2.77825038,231.73,231.61,4.84643131]
[1759437711286,7.55,231.82,231.64,2.77825038]
[1759437711480,7.55,231.8,231.64,7.62468169]
[1759437711685,7.55,231.8,231.64,2.77825038]
[1759437711686,11.43,231.8,231.64,2.77825038]